fUSD/lending_fUSD_20250426
["ID","MTS","AMOUNT","RATE_DAILY","PERIOD"]
[359089664,1745701842011,-400.0,0.00019797,2]
[359089666,1745701842021,-75188.99,0.00019797,2]
[359089668,1745701842032,-400.0,0.00019797,2]
[359089670,1745701842042,-450.98,0.00019797,2]
[359089672,1745701842052,-400.0,0.00019797,2]
[359089674,1745701842064,-400.0,0.00019797,2]
[359089676,1745701842074,-400.0,0.00019797,2]
[359089678,1745701842084,-400.0,0.00019797,2]
[359089680,1745701842094,-9046.58,0.00019797,2]
[359089682,1745701842104,-680.79,0.00019797,2]
[359089684,1745701842115,-511.06,0.00019797,2]
[359089686,1745701842125,-400.0,0.00019797,2]
[359089688,1745701842135,-4462.53,0.00019797,2]
[359089690,1745701842145,-400.0,0.00019797,2]
[359089692,1745701842155,-664.39,0.00019797,2]
[359089694,1745701842165,-86850.97,0.00019797,2]
[359089696,1745701842175,-400.0,0.00019797,2]
[359089699,1745701842185,-400.0,0.00019797,2]
[359089701,1745701842195,-1733.35,0.00019797,2]
[359089703,1745701842204,-400.0,0.00019797,2]
[359089705,1745701842214,-400.0,0.00019797,2]
[359089707,1745701842224,-400.0,0.00019797,2]
[359089709,1745701842235,-400.0,0.00019797,2]
[359089711,1745701842245,-400.0,0.00019797,2]
[359089713,1745701842255,-400.0,0.00019797,2]
[359089715,1745701842265,-400.0,0.00019797,2]
[359089717,1745701842275,-400.0,0.00019797,2]
[359089719,1745701842285,-400.0,0.00019797,2]
[359089721,1745701842295,-500.0,0.00019797,2]
[359089723,1745701842305,-400.0,0.00019797,2]
[359089726,1745701842320,-400.0,0.00019797,2]
[359089728,1745701842330,-400.0,0.00019797,2]
[359089730,1745701842340,-538.44,0.00019797,2]
[359089732,1745701842351,-400.0,0.00019797,2]
[359089734,1745701842363,-400.0,0.00019797,2]
[359089736,1745701842375,-400.0,0.00019797,2]
[359089738,1745701842386,-527.17,0.00019797,2]
[359089740,1745701842396,-379.28087059,0.00019797,2]
[359089743,1745701842408,-400.0,0.00019797,2]
[359089745,1745701842418,-400.0,0.00019797,2]
[359089747,1745701842428,-400.0,0.00019797,2]
[359089749,1745701842439,-400.0,0.00019797,2]
[359089751,1745701842450,-641.98,0.00019797,2]
[359089753,1745701842460,-473.88,0.00019797,2]
[359089755,1745701842471,-400.0,0.00019797,2]
[359089757,1745701842481,-400.0,0.00019797,2]
[359089759,1745701842492,-400.0,0.00019797,2]
[359089761,1745701842501,-568.39,0.00019797,2]
[359089763,1745701842512,-400.0,0.00019797,2]
[359089765,1745701842522,-1376.53,0.00019797,2]
[359089767,1745701842532,-500.0,0.00019797,2]
[359089769,1745701842542,-400.0,0.00019797,2]
[359089771,1745701842552,-400.0,0.00019797,2]
[359089773,1745701842562,-400.0,0.00019797,2]
[359089775,1745701842573,-461.55,0.00019797,2]
[359089778,1745701842583,-432.51,0.00019797,2]
[359089780,1745701842594,-400.0,0.00019797,2]
[359089782,1745701842604,-512.04613896,0.00019797,2]
[359089784,1745701842615,-710.76,0.00019797,2]
[359089786,1745701842625,-600.04,0.00019797,2]
[359089788,1745701842635,-400.0,0.00019797,2]
[359089790,1745701842646,-503.54,0.00019797,2]
[359089792,1745701842656,-400.0,0.00019797,2]
[359089794,1745701842666,-406.69,0.00019797,2]
[359089796,1745701842676,-400.0,0.00019797,2]
[359089798,1745701842686,-400.0,0.00019797,2]
[359089800,1745701842696,-400.0,0.00019797,2]
[359089803,1745701842707,-400.0,0.00019797,2]
[359089805,1745701842717,-400.0,0.00019797,2]
[359089807,1745701842727,-565.75,0.00019797,2]
[359089809,1745701842737,-400.0,0.00019797,2]
[359089811,1745701842747,-2565.36,0.00019797,2]
[359089814,1745701842766,-817.03,0.00019797,2]
[359089816,1745701842782,-400.0,0.00019797,2]
[359089818,1745701842792,-400.0,0.00019797,2]
[359089820,1745701842802,-540.94,0.00019797,2]
[359089823,1745701842812,-400.0,0.00019797,2]
[359089825,1745701842822,-400.0,0.00019797,2]
[359089827,1745701842833,-570.85,0.00019797,2]
[359089828,1745701842843,-400.0,0.00019797,2]
[359089829,1745701842854,-400.0,0.00019797,2]
[359089830,1745701842864,-505.0,0.00019797,2]
[359089831,1745701842874,-400.0,0.00019797,2]
[359089832,1745701842884,-400.0,0.00019797,2]
[359089833,1745701842895,-400.0,0.00019797,2]
[359089834,1745701842904,-400.0,0.00019797,2]
[359089835,1745701842914,-400.0,0.00019797,2]
[359089836,1745701842924,-400.0,0.00019797,2]
[359089837,1745701842934,-814.69,0.00019797,2]
[359089838,1745701842944,-400.0,0.00019797,2]
[359089839,1745701842954,-535.73,0.00019797,2]
[359089840,1745701842964,-400.0,0.00019797,2]
[359089841,1745701842974,-462.76,0.00019797,2]
[359089842,1745701842985,-741.72,0.00019797,2]
[359089843,1745701842995,-400.0,0.00019797,2]
[359089845,1745701843005,-400.0,0.00019798,2]
[359089847,1745701843014,-212.27858785,0.00019798,2]
[359089849,1745701843025,-206.2795176,0.00019798,2]
[359089852,1745701843035,-400.0,0.00019798,2]
[359089854,1745701843044,-691.48,0.00019798,2]
[359089856,1745701843054,-440.67,0.00019798,2]
[359089858,1745701843064,-400.0,0.00019798,2]
[359089860,1745701843074,-744.3,0.00019798,2]
[359089862,1745701843084,-414.54,0.00019798,2]
[359089864,1745701843094,-500.0,0.00019798,2]
[359089866,1745701843103,-500.0,0.00019798,2]
[359089868,1745701843113,-400.0,0.00019798,2]
[359089870,1745701843123,-400.0,0.00019798,2]
[359089872,1745701843134,-400.0,0.00019798,2]
[359089874,1745701843144,-400.0,0.00019798,2]
[359089876,1745701843154,-523.55,0.00019798,2]
[359089878,1745701843164,-400.0,0.00019798,2]
[359089880,1745701843174,-400.0,0.00019798,2]
[359089882,1745701843184,-400.0,0.00019798,2]
[359089885,1745701843199,-400.0,0.00019798,2]
[359089887,1745701843209,-403.65,0.00019798,2]
[359089889,1745701843220,-579.04,0.00019798,2]
[359089891,1745701843230,-400.0,0.00019798,2]
[359089893,1745701843240,-400.0,0.00019798,2]
[359089897,1745701843250,-77.83522123,0.00019798,2]
[359089937,1745701843756,-322.16477877,0.00019798,2]
[359089939,1745701843766,-400.0,0.00019798,2]
[359089941,1745701843776,-157.03864439,0.00019798,2]
[359089943,1745701843788,-242.96135561,0.00019798,2]
[359089945,1745701843798,-500.0,0.00019798,2]
[359089947,1745701843808,-400.0,0.00019798,2]
[359089949,1745701843817,-13.75044566,0.00019798,2]
[359089956,1745701843883,-386.24955434,0.00019798,2]
[359089959,1745701843893,-500.0,0.00019798,2]
[359089960,1745701843902,-320.09584033,0.00019798,2]
[359089962,1745701843911,-400.0,0.00019798,2]
[359089965,1745701843920,-400.0,0.00019798,2]
[359089968,1745701843930,-174.09512335,0.00019798,2]
[359089971,1745701843939,-663.03,0.00019798,2]
[359089973,1745701843949,-400.0,0.00019798,2]
[359089975,1745701843959,-400.0,0.00019798,2]
[359089977,1745701843968,-400.0,0.00019798,2]
[359089979,1745701843978,-400.0,0.00019798,2]
[359089981,1745701843989,-400.0,0.00019798,2]
[359089983,1745701843999,-400.0,0.00019798,2]
[359089985,1745701844008,-400.0,0.00019798,2]
[359089987,1745701844019,-400.0,0.00019798,2]
[359089989,1745701844028,-400.0,0.00019798,2]
[359089991,1745701844038,-563.92,0.00019798,2]
[359089993,1745701844047,-516.33,0.00019798,2]
[359089995,1745701844058,-559.84,0.00019798,2]
[359089997,1745701844068,-400.0,0.00019798,2]
[359089999,1745701844077,-400.0,0.00019798,2]
[359090001,1745701844087,-400.0,0.00019798,2]
[359090003,1745701844097,-258.34889673,0.00019798,2]
[359090005,1745701844107,-500.0,0.00019798,2]
[359090007,1745701844116,-400.0,0.00019798,2]
[359090009,1745701844126,-710.15,0.00019798,2]
[359090011,1745701844136,-500.0,0.00019798,2]
[359090013,1745701844146,-400.0,0.00019798,2]
[359090015,1745701844155,-427.09,0.00019798,2]
[359090017,1745701844165,-500.0,0.00019798,2]
[359090019,1745701844175,-400.0,0.00019798,2]
[359090021,1745701844185,-500.0,0.00019798,2]
[359090023,1745701844195,-400.0,0.00019798,2]
[359090025,1745701844204,-400.0,0.00019798,2]
[359090027,1745701844214,-400.0,0.00019798,2]
[359090029,1745701844223,-415.49,0.00019798,2]
[359090031,1745701844233,-400.0,0.00019798,2]
[359090033,1745701844243,-400.0,0.00019798,2]
[359090035,1745701844252,-400.0,0.00019798,2]
[359090037,1745701844261,-400.0,0.00019798,2]
[359090039,1745701844271,-502.99919919,0.00019798,2]
[359090041,1745701844281,-464.36,0.00019798,2]
[359090042,1745701844291,-500.0,0.00019798,2]
[359090043,1745701844300,-219.37673338,0.00019798,2]
[359090044,1745701844378,-180.62326662,0.00019798,2]
[359090045,1745701844387,-201.60456806,0.00019798,2]
[359090057,1745701846359,-397.1802369,0.00019796,2]
[359090058,1745701846372,-198.39543194,0.00019798,2]
[359090059,1745701846381,-542.97,0.00019798,2]
[359090060,1745701846391,-297.38488061,0.00019798,2]
[359090061,1745701846403,-102.61511939,0.00019798,2]
[359090062,1745701846412,-497.24,0.00019798,2]
[359090063,1745701846422,-342.14488061,0.00019798,2]
[359090064,1745701846433,-127.06511939,0.00019798,2]
[359090065,1745701846445,-500.0,0.00019798,2]
[359090066,1745701846455,-304.64296055,0.00019798,2]
[359090067,1745701846467,-454.37703945,0.00019798,2]
[359090068,1745701846477,-304.62826055,0.00019798,2]
[359090069,1745701846489,-290.01173945,0.00019798,2]
[359090070,1745701846499,-400.0,0.00019798,2]
[359090071,1745701846508,-494.33021568,0.00019798,2]
[359090072,1745701846519,-405.28,0.00019798,2]
[359090073,1745701846528,-400.0,0.00019798,2]
[359090074,1745701846539,-400.0,0.00019798,2]
[359090075,1745701846548,-184.04309067,0.00019798,2]
[359090076,1745701846557,-500.0,0.00019798,2]
[359090077,1745701846567,-400.0,0.00019798,2]
[359090078,1745701846579,-400.0,0.00019798,2]
[359090079,1745701846588,-400.0,0.00019798,2]
[359090080,1745701846599,-400.0,0.00019798,2]
[359090081,1745701846610,-400.0,0.00019798,2]
[359090082,1745701846620,-598.29,0.00019798,2]
[359090083,1745701846630,-400.0,0.00019798,2]
[359090084,1745701846640,-400.0,0.00019798,2]
[359090085,1745701846651,-400.0,0.00019798,2]
[359090086,1745701846661,-400.0,0.00019798,2]
[359090087,1745701846670,-400.0,0.00019798,2]
[359090088,1745701846679,-610.42,0.00019798,2]
[359090089,1745701846690,-300.0,0.00019798,2]
[359090090,1745701846701,-294.63196664,0.00019798,2]
[359090091,1745701846711,-734.39,0.00019798,2]
[359090092,1745701846721,-566.2,0.00019798,2]
[359090093,1745701846730,-454.36,0.00019798,2]
[359090094,1745701846739,-1605.53,0.00019798,2]
[359090095,1745701846748,-400.0,0.00019798,2]
[359090096,1745701846757,-430.35,0.00019798,2]
[359090097,1745701846766,-400.0,0.00019798,2]
[359090098,1745701846775,-400.0,0.00019798,2]
[359090099,1745701846784,-400.0,0.00019798,2]
[359090100,1745701846794,-400.0,0.00019798,2]
[359090102,1745701846804,-420.65,0.00019798,2]
[359090103,1745701846814,-400.0,0.00019798,2]
[359090104,1745701846825,-400.0,0.00019798,2]
[359090105,1745701846836,-400.0,0.00019798,2]
[359090106,1745701846846,-426.06,0.00019798,2]
[359090108,1745701846856,-400.0,0.00019798,2]
[359090110,1745701846865,-400.0,0.00019798,2]
[359090112,1745701846874,-677.66,0.00019798,2]
[359090114,1745701846884,-400.0,0.00019798,2]
[359090116,1745701846894,-400.0,0.00019798,2]
[359090118,1745701846904,-1308.99,0.00019798,2]
[359090120,1745701846914,-400.0,0.00019798,2]
[359090122,1745701846923,-344.21204829,0.00019798,2]
[359090124,1745701846933,-400.0,0.00019798,2]
[359090126,1745701846942,-454.15,0.00019798,2]
[359090128,1745701846952,-554.97,0.00019798,2]
[359090130,1745701846961,-524.85641366,0.00019798,2]
[359090132,1745701846971,-400.0,0.00019798,2]
[359090134,1745701846981,-490.5,0.00019798,2]
[359090136,1745701846991,-400.0,0.00019798,2]
[359090138,1745701847000,-400.0,0.00019798,2]
[359090140,1745701847009,-400.0,0.00019798,2]
[359090142,1745701847019,-400.0,0.00019798,2]
[359090144,1745701847028,-150.0,0.00019798,2]
[359090146,1745701847038,-150.0,0.00019798,2]
[359090148,1745701847047,-400.0,0.00019798,2]
[359090150,1745701847057,-400.0,0.00019798,2]
[359090152,1745701847066,-401.87,0.00019798,2]
[359090154,1745701847076,-150.0,0.00019798,2]
[359090156,1745701847086,-400.0,0.00019798,2]
[359090158,1745701847096,-606.0,0.00019798,2]
[359090160,1745701847105,-400.0,0.00019798,2]
[359090162,1745701847116,-797.58,0.00019798,2]
[359090164,1745701847126,-400.0,0.00019798,2]
[359090166,1745701847135,-262.14240281,0.00019798,2]
[359090168,1745701847144,-400.0,0.00019798,2]
[359090170,1745701847153,-150.0,0.00019798,2]
[359090172,1745701847164,-400.0,0.00019798,2]
[359090174,1745701847173,-400.0,0.00019798,2]
[359090175,1745701847182,-400.0,0.00019798,2]
[359090176,1745701847192,-150.0,0.00019798,2]
[359090177,1745701847203,-400.0,0.00019798,2]
[359090178,1745701847215,-400.0,0.00019798,2]
[359090179,1745701847226,-400.0,0.00019798,2]
[359090180,1745701847236,-400.0,0.00019798,2]
[359090181,1745701847246,-400.0,0.00019798,2]
[359090182,1745701847257,-400.0,0.00019798,2]
[359090183,1745701847266,-400.0,0.00019798,2]
[359090184,1745701847276,-400.0,0.00019798,2]
[359090185,1745701847285,-400.0,0.00019798,2]
[359090186,1745701847294,-400.0,0.00019798,2]
[359090187,1745701847304,-400.0,0.00019798,2]
[359090188,1745701847314,-400.0,0.00019798,2]
[359090189,1745701847323,-400.0,0.00019798,2]
[359090190,1745701847332,-400.0,0.00019798,2]
[359090191,1745701847341,-435.25997266,0.00019798,2]
[359090192,1745701847350,-400.0,0.00019798,2]
[359090193,1745701847360,-400.0,0.00019798,2]
[359090194,1745701847372,-400.0,0.00019798,2]
[359090195,1745701847382,-400.0,0.00019798,2]
[359090196,1745701847391,-400.0,0.00019798,2]
[359090197,1745701847401,-400.0,0.00019798,2]
[359090198,1745701847411,-400.0,0.00019798,2]
[359090199,1745701847421,-500.0,0.00019798,2]
[359090200,1745701847431,-461.57,0.00019798,2]
[359090201,1745701847441,-400.0,0.00019798,2]
[359090202,1745701847451,-400.0,0.00019798,2]
[359090203,1745701847461,-400.0,0.00019798,2]
[359090204,1745701847470,-1338.58,0.00019798,2]
[359090205,1745701847479,-400.0,0.00019798,2]
[359090206,1745701847489,-400.0,0.00019798,2]
[359090207,1745701847498,-400.0,0.00019798,2]
[359090208,1745701847508,-400.0,0.00019798,2]
[359090209,1745701847517,-230.95900418,0.00019798,2]
[359090210,1745701847527,-400.0,0.00019798,2]
[359090211,1745701847536,-400.0,0.00019798,2]
[359090212,1745701847546,-400.0,0.00019798,2]
[359090213,1745701847556,-446.26,0.00019798,2]
[359090214,1745701847565,-402.43,0.00019798,2]
[359090215,1745701847575,-400.0,0.00019798,2]
[359090216,1745701847585,-568.54,0.00019798,2]
[359090217,1745701847593,-400.0,0.00019798,2]
[359090218,1745701847603,-400.0,0.00019798,2]
[359090219,1745701847612,-611.72,0.00019798,2]
[359090220,1745701847621,-400.0,0.00019798,2]
[359090221,1745701847631,-400.0,0.00019798,2]
[359090222,1745701847640,-620.38,0.00019798,2]
[359090223,1745701847650,-648.14,0.00019798,2]
[359090224,1745701847659,-400.0,0.00019798,2]
[359090225,1745701847669,-400.0,0.00019798,2]
[359090226,1745701847679,-478.46,0.00019798,2]
[359090227,1745701847688,-400.0,0.00019798,2]
[359090228,1745701847698,-1409.66,0.00019798,2]
[359090229,1745701847707,-500.0,0.00019798,2]
[359090230,1745701847716,-400.0,0.00019798,2]
[359090231,1745701847726,-400.0,0.00019798,2]
[359090232,1745701847735,-509.13,0.00019798,2]
[359090233,1745701847745,-400.0,0.00019798,2]
[359090234,1745701847755,-400.0,0.00019798,2]
[359090235,1745701847764,-400.0,0.00019798,2]
[359090236,1745701847773,-484.13,0.00019798,2]
[359090237,1745701847783,-400.0,0.00019798,2]
[359090238,1745701847792,-400.0,0.00019798,2]
[359090239,1745701847801,-400.0,0.00019798,2]
[359090240,1745701847810,-400.0,0.00019798,2]
[359090241,1745701847819,-333.08239048,0.00019798,2]
[359090242,1745701847828,-400.0,0.00019798,2]
[359090243,1745701847837,-400.0,0.00019798,2]
[359090244,1745701847847,-400.0,0.00019798,2]
[359090245,1745701847856,-400.0,0.00019798,2]
[359090246,1745701847866,-400.0,0.00019798,2]
[359090247,1745701847875,-662.46,0.00019798,2]
[359090248,1745701847885,-721.02,0.00019798,2]
[359090249,1745701847896,-475.17,0.00019798,2]
[359090250,1745701847907,-588.78,0.00019798,2]
[359090251,1745701847917,-462.9,0.00019798,2]
[359090252,1745701847927,-33.51130916,0.00019798,2]
[359090253,1745701939580,246.0,0.00025,90]
[359090254,1745702062063,299.99,0.00019795,7]
[359090255,1745702156318,250.0,0.00017,2]
[359090256,1745702157393,300.0,0.00019,2]
[359090258,1745702173105,158.0,0.00022,120]
[359090259,1745702177510,1000.0,0.0001888,2]
[359090261,1745702257347,-166.67,0.00019458,2]
[359090262,1745702318001,298.4580729,0.00018865,2]
[359090263,1745702318027,275.7919271,0.00018865,2]
[359090264,1745702318676,574.25,0.0002594,120]
[359090265,1745702318880,574.25,0.00028298,120]
[359090266,1745702327862,300.0,0.00016959,2]
[359090267,1745702327886,202.48,0.00016959,2]
[359090268,1745702328062,502.48,0.00019223,2]
[359090270,1745702728090,429.11837313,0.00023,120]
[359090271,1745702732338,307.28212334,0.0002,120]
[359090272,1745702738331,150.0,0.00018764,7]
[359090273,1745702830670,159.38960219,0.00021,120]
[359090274,1745702831941,801.20468138,0.0002301,120]
[359090276,1745702849210,508.31262066,0.00035,120]
[359090277,1745702863200,185.73131365,0.00019,2]
[359090278,1745702869366,828.60119989,0.0003,120]
[359090279,1745702892725,169.04690063,0.00027,120]
[359090283,1745702913918,203.51821158,0.00028799,120]
[359090284,1745702915962,337.54660795,0.0003,60]
[359090285,1745702917544,857.20131515,0.00030137,120]
[359090286,1745702921130,467.35105188,0.000145,120]
[359090287,1745702927262,996.0,0.00035,60]
[359090318,1745703037637,-633.75069472,0.00019502,2]
[359090319,1745703037650,-250.0,0.00019593,2]
[359090320,1745703037660,-200.0,0.00019593,2]
[359090321,1745703037670,-200.0,0.00019661,2]
[359090322,1745703037680,-156.56058936,0.00019685,2]
[359090323,1745703037691,-239.5020118,0.00019695,2]
[359090324,1745703037701,-157.14903083,0.00019696,2]
[359090325,1745703037711,-167.28667142,0.00019696,2]
[359090326,1745703037723,-156.5605893,0.00019716,2]
[359090327,1745703037733,-150.0,0.00019725,2]
[359090328,1745703037743,-150.0,0.00019725,2]
[359090329,1745703037753,-151.0,0.00019727,2]
[359090330,1745703037763,-207.4,0.00019727,2]
[359090331,1745703037774,-150.0,0.00019732,2]
[359090332,1745703037785,-150.0,0.00019733,2]
[359090333,1745703037795,-150.0,0.00019736,2]
[359090334,1745703037807,-150.0,0.00019737,2]
[359090335,1745703037816,-1200.0,0.00019738,2]
[359090336,1745703037826,-300.0,0.00019738,2]
[359090337,1745703037837,-150.0,0.00019739,2]
[359090369,1745703038196,-6683.41,0.00019739,2]
[359090371,1745703038211,-529.09,0.00019739,2]
[359090373,1745703038220,-150.99,0.00019739,2]
[359090375,1745703038230,-150.0,0.00019742,2]
[359090377,1745703038240,-150.0,0.00019744,2]
[359090379,1745703038250,-150.0,0.00019744,2]
[359090381,1745703038260,-150.0,0.00019747,2]
[359090383,1745703038270,-150.0,0.00019751,2]
[359090385,1745703038280,-150.0,0.00019755,2]
[359090387,1745703038289,-150.0,0.00019759,2]
[359090389,1745703038299,-150.0,0.0001976,2]
[359090391,1745703038309,-150.0,0.00019763,2]
[359090393,1745703038319,-150.0,0.00019763,2]
[359090395,1745703038329,-150.0,0.00019764,2]
[359090397,1745703038338,-150.0,0.00019766,2]
[359090399,1745703038348,-150.0,0.00019767,2]
[359090401,1745703038358,-150.0,0.00019768,2]
[359090403,1745703038367,-150.0,0.00019772,2]
[359090406,1745703038378,-150.0,0.00019775,2]
[359090407,1745703038388,-150.0,0.00019781,2]
[359090410,1745703038398,-150.0,0.00019782,2]
[359090411,1745703038408,-150.0,0.00019782,2]
[359090414,1745703038418,-150.0,0.00019783,2]
[359090416,1745703038429,-150.0,0.00019783,2]
[359090418,1745703038438,-150.0,0.00019784,2]
[359090420,1745703038448,-500.0,0.00019784,2]
[359090422,1745703038458,-150.0,0.00019784,2]
[359090424,1745703038468,-135749.4624999,0.00019785,2]
[359090426,1745703038478,-12213.896005,0.00019785,2]
[359090428,1745703038487,-15384.319699,0.00019785,2]
[359090430,1745703038497,-252.44,0.00019786,2]
[359090432,1745703038507,-252.44,0.00019786,2]
[359090434,1745703038517,-252.44,0.00019786,2]
[359090436,1745703038528,-252.44,0.00019786,2]
[359090438,1745703038538,-252.44,0.00019786,2]
[359090440,1745703038547,-252.44,0.00019786,2]
[359090442,1745703038557,-252.44,0.00019786,2]
[359090444,1745703038567,-252.44,0.00019786,2]
[359090446,1745703038578,-252.44,0.00019786,2]
[359090448,1745703038588,-252.44,0.00019786,2]
[359090450,1745703038597,-252.44,0.00019786,2]
[359090452,1745703038607,-252.44,0.00019786,2]
[359090454,1745703038619,-252.44,0.00019786,2]
[359090456,1745703038630,-252.44,0.00019786,2]
[359090459,1745703038652,-252.44,0.00019786,2]
[359090461,1745703038663,-150.0,0.00019786,2]
[359090464,1745703038674,-1000.0,0.00019788,2]
[359090466,1745703038683,-150.0,0.00019789,2]
[359090468,1745703038694,-206.70529025,0.00019793,2]
[359090470,1745703038704,-199.03357293,0.00019793,2]
[359090472,1745703038714,-500.0,0.00019793,2]
[359090474,1745703038724,-500.0,0.00019793,2]
[359090476,1745703038734,-500.0,0.00019793,2]
[359090478,1745703038744,-500.0,0.00019793,2]
[359090480,1745703038754,-467.49349546,0.00019793,2]
[359090482,1745703038764,-532.55,0.00019794,2]
[359090484,1745703038773,-415.48,0.00019794,2]
[359090486,1745703038783,-400.0,0.00019794,2]
[359090488,1745703038793,-272.460639,0.00019794,2]
[359090490,1745703038803,-500.0,0.00019794,2]
[359090493,1745703038814,-265.659978,0.00019794,2]
[359090495,1745703038825,-2098.86,0.00019794,2]
[359090497,1745703038835,-166.423983,0.00019794,2]
[359090499,1745703038845,-400.0,0.00019794,2]
[359090501,1745703038855,-400.0,0.00019794,2]
[359090503,1745703038866,-400.0,0.00019794,2]
[359090505,1745703038876,-400.0,0.00019794,2]
[359090507,1745703038886,-400.0,0.00019794,2]
[359090509,1745703038896,-422.38,0.00019794,2]
[359090511,1745703038906,-2468.05,0.00019794,2]
[359090513,1745703038916,-400.0,0.00019794,2]
[359090515,1745703038926,-400.0,0.00019794,2]
[359090517,1745703038937,-605.74,0.00019794,2]
[359090519,1745703038947,-400.0,0.00019794,2]
[359090521,1745703038957,-400.0,0.00019794,2]
[359090523,1745703038967,-400.0,0.00019794,2]
[359090525,1745703038978,-400.0,0.00019794,2]
[359090527,1745703038988,-400.0,0.00019794,2]
[359090530,1745703038998,-400.0,0.00019794,2]
[359090532,1745703039008,-459.6,0.00019794,2]
[359090534,1745703039019,-449.72,0.00019794,2]
[359090536,1745703039029,-400.0,0.00019794,2]
[359090538,1745703039039,-538.1,0.00019794,2]
[359090540,1745703039049,-655.73,0.00019794,2]
[359090542,1745703039059,-401.46,0.00019794,2]
[359090545,1745703039075,-400.0,0.00019794,2]
[359090547,1745703039085,-400.0,0.00019794,2]
[359090549,1745703039095,-547.9,0.00019794,2]
[359090551,1745703039106,-500.0,0.00019794,2]
[359090553,1745703039116,-400.0,0.00019794,2]
[359090555,1745703039127,-818.39,0.00019794,2]
[359090557,1745703039137,-400.0,0.00019794,2]
[359090559,1745703039148,-429.12,0.00019794,2]
[359090561,1745703039158,-603.88,0.00019794,2]
[359090563,1745703039169,-400.0,0.00019794,2]
[359090566,1745703039183,-593.1,0.00019794,2]
[359090568,1745703039193,-400.0,0.00019794,2]
[359090570,1745703039203,-400.0,0.00019794,2]
[359090572,1745703039213,-400.0,0.00019794,2]
[359090574,1745703039224,-481.62,0.00019794,2]
[359090576,1745703039234,-6193.26,0.00019794,2]
[359090578,1745703039245,-400.0,0.00019794,2]
[359090580,1745703039256,-511.99031012,0.00019794,2]
[359090582,1745703039266,-698.81,0.00019794,2]
[359090584,1745703039276,-500.0,0.00019794,2]
[359090587,1745703039286,-400.0,0.00019794,2]
[359090589,1745703039297,-400.0,0.00019794,2]
[359090591,1745703039307,-400.0,0.00019794,2]
[359090593,1745703039319,-400.0,0.00019794,2]
[359090595,1745703039329,-428.21,0.00019794,2]
[359090597,1745703039339,-400.0,0.00019794,2]
[359090600,1745703039349,-400.0,0.00019794,2]
[359090602,1745703039359,-500.0,0.00019794,2]
[359090604,1745703039369,-430.26,0.00019794,2]
[359090606,1745703039379,-400.0,0.00019794,2]
[359090608,1745703039390,-400.0,0.00019794,2]
[359090610,1745703039400,-400.0,0.00019794,2]
[359090612,1745703039410,-400.0,0.00019794,2]